Cogmind - Beta 16 @@@ ROGUE MODE // 2025.12.15 @ 17:25:34 Player: BlobtheGreat Result: Destroyed by B-75 Beast with Heavy Machine Gun Performance ------------- Evolutions (2) 1000 Regions Visited (6) 1200 Robots Destroyed (121) 605 Value Destroyed (3656) 3656 Prototype IDs (4) 80 Alien Tech Used (0) 0 Bonus (1767) 1767 TOTAL SCORE: 8308 Bonus ------- High Alert Combat Kills 293 Follower Combat Kills 274 Entered Garrisons 200 Used RIF Installer 1000 Cogmind --------- Core Integrity 0/550 Matter 300/300 Energy 96/100 System Corruption 0% Temperature Cool (14) Movement Treading (160) Location -8/Garrison Parts ------- > --- POWER (1) -------- (None) > --- PROPULSION (3) --- Light Treads > --- UTILITY (5) ------ Improved Targeting Computer > --- WEAPON (2) ------- (None) > --- INVENTORY (5) ---- Improved Carbon-fiber Leg Large Storage Unit Seismic Detector Advanced Beam Cannon Rocket Launcher Peak State ------------ > --- POWER ------------ Light Nuclear Core > --- PROPULSION ------- Light Treads Armored Treads Armored Treads > --- UTILITY ---------- Heat Sink Improved Heat Sink Huge Storage Unit Improved Targeting Computer Light Armor Plating > --- WEAPON ----------- Advanced Beam Rifle Advanced Beam Rifle > --- INVENTORY -------- Light Treads Light Treads Light Treads Light Treads Titanium Leg Improved Carbon-fiber Leg Improved Carbon-fiber Leg Improved Carbon-fiber Leg Improved Carbon-fiber Leg Large Storage Unit High-capacity Storage Unit Seismic Detector Actuator Array Light Armor Plating Medium Armor Plating Medium Armor Plating Advanced Beam Rifle Advanced Beam Rifle Advanced Beam Cannon Heavy Assault Rifle Rocket Launcher Missile Launcher Improved Datajack Heavy Hammer Katana [Rating: 32] Favorites ----------- Power Light Nuclear Core Engine Improved Ion Engine Power Core Light Nuclear Core Propulsion Light Treads Treads Light Treads Flight Unit Improved VTOL Module Utility High-capacity Storage Unit Device Improved Heat Sink Storage High-capacity Storage Unit Processor Improved Targeting Computer Protection Light Armor Plating Weapon Autogun Energy Gun Advanced Beam Rifle Energy Cannon Advanced Beam Cannon Ballistic Gun Autogun Launcher Rocket Launcher Slashing Weapon Katana Build | -11 -10 -10 -9 -9 -8 -8 ------- Run | Yrd Mat Min Mat Min Mat Gar Slots Evolved 4 | . . . 2 . 2 . Power . | . . . . . . . Propulsion 1 | . . . 1 . . . Utility 3 | . . . 1 . 2 . Weapon . | . . . . . . . Parts Attached 73 | 7 5 . 11 11 20 19 Power 8 | 1 1 . 1 1 1 3 Engine 4 | 1 . . 1 1 . 1 Core 4 | . 1 . . . 1 2 Reactor . | . . . . . . . Propulsion 29 | 2 . . 6 3 7 11 Treads 28 | 2 . . 6 3 6 11 Leg . | . . . . . . . Wheel . | . . . . . . . Hover . | . . . . . . . Flight 1 | . . . . . 1 . Utility 22 | 2 2 . 2 4 9 3 Device 7 | 1 . . 1 . 4 1 Storage 4 | 1 2 . . . 1 . Processor 1 | . . . . 1 . . Hackware . | . . . . . . . Protection 10 | . . . 1 3 4 2 Artifact . | . . . . . . . Weapon 14 | 2 2 . 2 3 3 2 Energy Gun 4 | 2 . . . . 2 . Energy Cannon 2 | . . . 1 . 1 . Ballistic Gun 5 | . 2 . 1 2 . . Ballistic Cannon . | . . . . . . . Launcher 2 | . . . . 1 . 1 Special Weapon . | . . . . . . . Impact Weapon . | . . . . . . . Slashing Weapon 1 | . . . . . . 1 Piercing Weapon . | . . . . . . . Special Melee Weapon . | . . . . . . . Unidentified Prototypes 4 | . . . 2 . 2 . Parts Lost 25 | . 2 . 2 6 2 13 Power 5 | . 1 . 1 1 . 2 Propulsion 7 | . . . . 2 . 5 Utility 8 | . . . 1 2 1 4 Weapon 5 | . 1 . . 1 1 2 Highest Loss Streak 10 | . 1 . 1 6 2 10 To Critical Strikes 1 | . . . . . . 1 Average Backups 17 | 4 7 12 16 16 21 24 Power . | . . . . . . . Propulsion 5 | 2 1 1 4 3 6 9 Utility 4 | . 2 4 4 4 5 6 Weapon 6 | . 4 5 6 7 8 8 Tool/Special . | . . . . . . . Unused Backups 25 | . 8 . . . 6 11 Power 2 | . 2 . . . . . Propulsion 13 | . 4 . . . 4 5 Utility 2 | . 1 . . . . 1 Weapon 7 | . 1 . . . 2 4 Tool/Special 1 | . . . . . . 1 Average Slot Usage (%) 98 | . 98 100 96 96 99 98 Engine 4 | . 6 . 6 8 5 . Core 6 | . 7 14 1 . 3 8 Treads 28 | . 27 28 33 32 26 26 Device 13 | . 14 14 10 2 14 17 Storage 11 | . 14 14 11 11 9 8 Processor 4 | . . . . 6 9 9 Protection 7 | . . . 10 13 12 8 Energy Gun 5 | . 2 . . . 13 12 Ballistic Gun 14 | . 24 28 21 21 3 . Peak Build Rating 32 | 8 12 14 18 21 32 32 Average Rating 20 | 6 10 13 17 19 29 28 On Entrance 15 | . 8 12 14 18 21 32 Avg Prop Armor Cover (%) 6 | . . . . 6 . . Naked Turns . | . . . . . . . Heaviest Build 98 | 15 52 52 58 60 94 98 Greatest Support 60 | 40 40 40 60 60 60 60 Greatest Overweight (x) 1 | . 1 1 . 1 1 1 Average Overweight (x) . | . . 1 . . . . Largest Inventory Capacity 25 | 8 20 20 20 20 25 25 Average Capacity 20 | 7 13 20 20 20 21 24 Most Carried 25 | 8 10 19 20 19 25 25 Average Carried 17 | 5 7 15 18 16 21 24 Final Capacity 25 | 8 20 20 20 20 25 5 Final Carried 25 | 8 10 19 19 17 25 5 Class Distribution -------------------- 50% | Mutant 49% | Scavenger-Mutant Dominant Class ---------------- Mutant | -10/Materials Mutant | -10/Mines Scavenger-Mutant | -9/Materials Mutant | -9/Mines Scavenger-Mutant | -8/Materials Scavenger-Mutant | -8/Garrison Resources | -11 -10 -10 -9 -9 -8 -8 ----------- Run | Yrd Mat Min Mat Min Mat Gar Matter Collected 2574 | 270 195 340 562 432 429 346 Remotely . | . . . . . . . Salvage Created 4429 | 108 443 326 674 372 1577 929 Parts 252 | 8 21 16 55 18 77 57 Haulers Intercepted 5 | . . . 2 . 3 . Recyclers Shooed 2 | . . 1 1 . . . Parts Field Recycled . | . . . . . . . Retrieved Matter . | . . . . . . . Parts Self-Destructed . | . . . . . . . Prevented . | . . . . . . . Parts Restored . | . . . . . . . Kills | -11 -10 -10 -9 -9 -8 -8 ------- Run | Yrd Mat Min Mat Min Mat Gar Combat Hostiles Destroyed 107 | . 9 7 16 20 27 28 Melee 1 | . . . . . . 1 Guns 88 | . 9 7 15 14 25 18 Cannons 5 | . . . . . 1 4 AOE 12 | . . . 1 6 . 5 Classes Destroyed 13 | 2 4 . 2 3 2 . Worker 7 | . 1 2 1 1 2 . Tunneler 2 | 2 . . . . . . Hauler 5 | . . . 2 . 3 . Recycler 2 | 1 1 . . . . . Watcher 8 | . 2 . 3 . 3 . Swarmer 29 | . 3 . 6 4 4 12 Grunt 40 | . 6 7 7 4 11 5 Brawler 3 | . . . . . 1 2 Duelist 4 | . . . . 1 . 3 Sentry 19 | . . . 3 . 10 6 Demolisher 1 | . . . . 1 . . Hunter 1 | . . . . . 1 . Assembled 10 | . . . . 10 . . Best Kill Streak 6 | 2 3 3 6 6 5 3 Combat Bots Only 6 | . 3 3 3 6 5 3 Max Kills in Single Turn 3 | 1 2 1 1 3 1 3 Gunslinging 1 | . 1 . . . . . Exploded 3 | . . . 1 3 . 3 Melee 1 | . . . . . . 1 Uniques/NPCs Destroyed . | . . . . . . . Combat | -11 -10 -10 -9 -9 -8 -8 -------- Run | Yrd Mat Min Mat Min Mat Gar Hostile Shots Fired 475 | . 48 16 62 89 105 155 Missed 155 | . 14 4 18 29 36 54 Hits 320 | . 34 12 44 60 69 101 Melee 9 | . . . . 8 . 1 Projectile 311 | . 34 12 44 52 69 100 AOE 5 | . . . . 5 . . Critical Strikes 12 | . . . 2 1 2 7 Part Disruptions 3 | . . . . 3 . . Damage Taken 5154 | . 424 153 503 1078 940 2056 Core 862 | . 50 11 86 151 150 414 Absorbed by Shields . | . . . . . . . Regen/Repaired (Parts) 134 | . 134 . . . . . Core Remaining (%) 71 | 100 . 75 . 40 . . Volleys Fired 330 | 6 48 24 61 47 86 58 Largest 2 | 1 2 2 2 2 2 2 Hottest 129 | 50 90 46 46 46 129 129 Shots Fired 626 | 6 88 48 122 87 172 103 Gun 596 | 6 88 48 122 84 170 78 Cannon 25 | . . . . . 2 23 Launcher 5 | . . . . 3 . 2 Special . | . . . . . . . Kinetic 348 | . 61 48 122 84 33 . Thermal 264 | 6 18 . . . 139 101 Explosive 5 | . . . . 3 . 2 Electromagnetic 9 | . 9 . . . . . Robot Hit Streak 21 | 6 8 7 6 12 21 20 Robot Miss Streak 6 | . 6 2 6 4 3 3 Penetration Max . | . . . . . . . Secondary Targets 14 | . 1 2 2 4 1 4 Max Gunslinging Chain 1 | . 1 1 1 1 1 1 Shots Hit Robots 388 | 6 46 33 60 53 128 62 Core Hits 192 | 4 21 17 27 35 53 35 Critical Kills . | . . . . . . . Critical Parts Destroyed . | . . . . . . . Critical Strikes 17 | 1 1 . . . 12 3 Burn 17 | 1 1 . . . 12 3 Melee Attacks 23 | . . . . . . 23 Impact . | . . . . . . . Slashing 23 | . . . . . . 23 Piercing . | . . . . . . . Sneak Attacks . | . . . . . . . Combat Hostiles . | . . . . . . . Follow-up Attacks . | . . . . . . . Damage Inflicted 7697 | 75 711 522 1010 1209 2524 1646 Guns 6688 | 75 702 498 957 833 2487 1136 Cannons 199 | . . . . . 23 176 Explosions 685 | . . . 45 340 . 300 Melee 34 | . . . . . . 34 Ramming 91 | . 9 24 8 36 14 . Kinetic 3127 | . 486 498 957 833 353 . Thermal 3739 | 75 150 . 45 . 2157 1312 Explosive 640 | . . . . 340 . 300 Electromagnetic 66 | . 66 . . . . . Impact . | . . . . . . . Slashing 34 | . . . . . . 34 Piercing . | . . . . . . . Highest Corruption 2 | . 2 2 . 1 . . Average Corruption 1 | . 1 2 . 1 . . Corruption Purged . | . . . . . . . Corruption Blocked . | . . . . . . . Effects 22 | . 3 15 . 4 . . Message Errors 7 | . . 5 . 2 . . Matter Fused 9 | . 1 6 . 2 . . Heat Flow Errors 2 | . 1 1 . . . . Energy Discharges 1 | . . 1 . . . . Data Loss (minor) 2 | . 1 1 . . . . Data Loss (major) 1 | . . 1 . . . . Overload Shots . | . . . . . . . Overflow Damage . | . . . . . . . Projectiles . | . . . . . . . Explosions . | . . . . . . . Melee . | . . . . . . . Knockbacks . | . . . . . . . Impact . | . . . . . . . Kinetic . | . . . . . . . Secondary . | . . . . . . . Self-Inflicted Damage 36 | . . . . 36 . . Shots 1 | . . . . 1 . . Rammed 10 | . 2 1 3 1 3 . Targets Rammed 12 | . 2 2 3 2 3 . Kicked . | . . . . . . . Crushed 2 | . . 1 . 1 . . Highest Temperature 316 | 20 294 169 215 42 278 316 Average Temperature 65 | 10 95 28 24 9 81 93 Received Heat Transfer 2196 | . 186 84 192 276 423 1035 Siege Activations . | . . . . . . . Martial Activations . | . . . . . . . Shielding Activations . | . . . . . . . Robots Disrupted . | . . . . . . . Combat Hostiles . | . . . . . . . Robots Corrupted . | . . . . . . . Combat Hostiles . | . . . . . . . Parts Fried . | . . . . . . . Impact Corruptions . | . . . . . . . Robots Melted 1 | . . . . . 1 . Combat Hostiles 1 | . . . . . 1 . Parts Melted 16 | . 1 . . . 8 7 Heat Transferred 8190 | 296 518 . 50 . 4773 2553 Parts Sabotaged . | . . . . . . . Parts Stolen . | . . . . . . . Parts Stripped . | . . . . . . . Power Chain Reactions . | . . . . . . . Alert | -11 -10 -10 -9 -9 -8 -8 ------- Run | Yrd Mat Min Mat Min Mat Gar Maximum Alert Level 4 | . . . 1 . 2 4 Low Security (%) 63 | 100 100 100 46 100 72 . Level 1 17 | . . . 53 . 24 23 Level 2 6 | . . . . . 3 25 Level 3 7 | . . . . . . 31 Level 4 4 | . . . . . . 18 Level 5 . | . . . . . . . High Security . | . . . . . . . Max Security . | . . . . . . . Peak Influence 1266 | 5 70 122 335 150 411 1266 Initial 235 | . . . . 60 . 235 Average 235 | . 9 36 192 31 138 718 Influence Increases 3550 | 15 275 322 819 249 807 1063 Destroy 0b10 Robot/C 2180 | . 180 240 460 200 540 560 Destroy 0b10 Robot/NC 120 | 15 20 10 30 5 40 . Destroy Leader 396 | . 44 50 100 30 152 20 Allied During Kill 22 | . . 7 15 . . . Successful Hack 138 | . 31 . 67 . 12 28 Select Force Hacks 30 | . . . 30 . . . Disable Machine 90 | . . . 60 . 30 . Anti-Garrison Action 400 | . . . . . . 400 Destroy Structure 99 | . . . 27 14 3 55 Lose Combat Pursuer 75 | . . 15 30 . 30 . Influence Decreases 2382 | 15 275 322 663 405 445 257 Entered New Map 223 | . . . . 96 . 127 Time Decay 1719 | 15 255 302 473 249 425 . Lost Part 250 | . 20 . 20 60 20 130 Lost Ally 40 | . . 20 20 . . . Purge Threat 150 | . . . 150 . . . Squads Dispatched 13 | . 3 2 2 . 6 . Investigation 4 | . 1 1 1 . 1 . Extermination . | . . . . . . . Reinforcement 5 | . 2 . 1 . 2 . Assault 1 | . . 1 . . . . Garrison 3 | . . . . . 3 . Intercept . | . . . . . . . Searches Triggered . | . . . . . . . Construction Impeded . | . . . . . . . Haulers Reinforced . | . . . . . . . Active Scanning Responses . | . . . . . . . Cargo Convoy Interrupts . | . . . . . . . Stealth | -11 -10 -10 -9 -9 -8 -8 --------- Run | Yrd Mat Min Mat Min Mat Gar Distress Signals 5 | . . . 4 1 . . Communications Jammed . | . . . . . . . Distress Signals . | . . . . . . . Times Spotted 146 | . 15 12 30 31 34 24 Peak Tracking Total 8 | . 3 5 6 8 4 3 Tactical Retreats 5 | . . 1 2 . 2 . Traps | -11 -10 -10 -9 -9 -8 -8 ------- Run | Yrd Mat Min Mat Min Mat Gar Traps Triggered 11 | . 3 . . . 1 7 Indirectly . | . . . . . . . Trap Hack Attempts . | . . . . . . . Triggered . | . . . . . . . Disarmed . | . . . . . . . Reprogrammed . | . . . . . . . Reused . | . . . . . . . Traps Extracted . | . . . . . . . Installed . | . . . . . . . Triggered . | . . . . . . . Most Traps Carried 3 | . . 3 3 . . . Machines | -11 -10 -10 -9 -9 -8 -8 ---------- Run | Yrd Mat Min Mat Min Mat Gar Machines Disabled 9 | . . . 4 . 2 3 Max in Single Turn 1 | . . . 1 . 1 1 Garrison Relay 1 | . . . . . . 1 Machines Repaired . | . . . . . . . Machines Dismantled . | . . . . . . . Machines Sabotaged . | . . . . . . . Overloaded Fab Kills . | . . . . . . . Hacking | -11 -10 -10 -9 -9 -8 -8 --------- Run | Yrd Mat Min Mat Min Mat Gar Machines Accessed 23 | . 7 1 7 . 5 3 Terminals 19 | . 6 . 6 . 4 3 Fabricators . | . . . . . . . Repair Stations 1 | . 1 . . . . . Recycling Units 1 | . . . 1 . . . Scanalyzers . | . . . . . . . Garrison Access 1 | . . . . . 1 . Total Hacks 64 | . 22 1 23 . 13 5 Successful 39 | . 11 1 17 . 8 2 Failed 25 | . 11 . 6 . 5 3 Catastrophic 3 | . . . . . 1 2 Database Lockouts . | . . . . . . . Manual 47 | . 19 . 19 . 9 . Terminals 55 | . 18 . 20 . 12 5 Fabricators . | . . . . . . . Repair Stations 4 | . 4 . . . . . Recycling Units 3 | . . . 3 . . . Scanalyzers . | . . . . . . . Garrison Access 1 | . . . . . 1 . Terminal Hacks 13 | . 1 1 7 . 2 2 Part Schematic 3 | . . . 3 . . . Robot Analysis 3 | . 1 . 2 . . . Open Door 1 | . . 1 . . . . Emergency Access Points 1 | . . . . . . 1 Unreport Threat 1 | . . . 1 . . . Recall Investigation 1 | . . . . . 1 . Zone Layout 2 | . . . 1 . 1 . Patrol Navigation 1 | . . . . . . 1 Fabricator Hacks . | . . . . . . . Repair Station Hacks 4 | . 4 . . . . . Scan Component 2 | . 2 . . . . . Repair 2 | . 2 . . . . . Recycling Unit Hacks . | . . . . . . . Scanalyzer . | . . . . . . . Garrison Access Hacks 1 | . . . . . 1 . Unlock Access 1 | . . . . . 1 . Unauthorized Hacks 21 | . 6 . 10 . 5 . Terminals 20 | . 6 . 9 . 5 . Botnet 5 | . 1 . 3 . 1 . Skim 15 | . 5 . 6 . 4 . Fabricators . | . . . . . . . Repair Stations . | . . . . . . . Recycling Units 1 | . . . 1 . . . Tunnel 1 | . . . 1 . . . Scanalyzers . | . . . . . . . Garrison Access . | . . . . . . . Data Cores Recovered . | . . . . . . . Used . | . . . . . . . Hacking Detections 20 | . 7 . 7 . 4 2 Full Trace Events 2 | . 1 . . . . 1 Feedback Events . | . . . . . . . Feedback Blocked . | . . . . . . . Robot Schematics Acquired . | . . . . . . . Robots Built . | . . . . . . . Authchips . | . . . . . . . Time . | . . . . . . . Total Robot Build Rating . | . . . . . . . Part Schematics Acquired 3 | . . . 3 . . . Parts Built . | . . . . . . . Authchips . | . . . . . . . Time . | . . . . . . . Total Part Build Rating . | . . . . . . . Part Studies Acquired . | . . . . . . . Parts Repaired 2 | . 2 . . . . . Time 52 | . 52 . . . . . Parts Recycled . | . . . . . . . Recycled Matter . | . . . . . . . Retrieved Matter . | . . . . . . . Retrieved Components . | . . . . . . . Parts Scanalyzed . | . . . . . . . Part Schematics Acquired . | . . . . . . . Parts Damaged . | . . . . . . . Bothacking | -11 -10 -10 -9 -9 -8 -8 ------------ Run | Yrd Mat Min Mat Min Mat Gar Used RIF Installer 2 | . . . . . . 2 Program Shield 1 | . . . . . . 1 Robots Hacked . | . . . . . . . Non-combat . | . . . . . . . Combat . | . . . . . . . Robot Hacks Applied . | . . . . . . . Relay Couplers Released 4 | . . . . . . 4 Machine Destruction 4 | . . . . . . 4 Fabnet Peak Effective % . | . . . . . . . Robots Rewired . | . . . . . . . Allies Hacked . | . . . . . . . Hacks Repelled . | . . . . . . . Allies | -11 -10 -10 -9 -9 -8 -8 -------- Run | Yrd Mat Min Mat Min Mat Gar Total Allies 2 | . . 2 . . . . Largest Group 1 | . . 1 1 . . . Highest-Rated Group 31 | . . 31 31 . . . Highest-Rated Ally 31 | . . 31 31 . . . Total Orders . | . . . . . . . Ally Attacks 40 | . . 13 27 . . . Total Damage 484 | . . 188 296 . . . Kills 12 | . . 5 7 . . . Allies Corrupted . | . . . . . . . Allies Melted . | . . . . . . . Intel | -11 -10 -10 -9 -9 -8 -8 ------- Run | Yrd Mat Min Mat Min Mat Gar Active Infowar (turns) 3120 | 94 1377 1413 236 . . . Seismic 3120 | 94 1377 1413 236 . . . Robot Analysis Total 3 | . 1 . 2 . . . Derelict Logs Recovered 3 | . . 2 . 1 . . Drone Launches . | . . . . . . . Drone Recoveries . | . . . . . . . Exploration | -11 -10 -10 -9 -9 -8 -8 ------------- Run | Yrd Mat Min Mat Min Mat Gar Turns Passed 9289 | 163 1377 1413 1316 1082 1720 2218 Spaces Moved 3622 | 84 500 546 551 560 584 797 Core 1 | 1 . . . . . . Treads 3621 | 83 500 546 551 560 584 797 Legs . | . . . . . . . Wheels . | . . . . . . . Hover . | . . . . . . . Flight . | . . . . . . . Fastest Speed 50 | 50 160 240 160 160 166 160 Average Speed 206 | 158 192 240 160 166 226 240 Slowest Speed 246 | 160 240 240 160 240 246 246 Overloaded Moves . | . . . . . . . Propulsion Burnouts . | . . . . . . . Robots Hopped . | . . . . . . . Potential Cave-ins . | . . . . . . . Cave-ins Triggered . | . . . . . . . Exploration Rate (%) 65 | 5 80 92 51 94 56 78 Regions Visited 6 Branch Regions 2 Pre-discovered Areas 7 | . . 1 6 . . . Known Exits Taken 5 | . 1 1 1 1 1 . Unknown Exits Taken 1 | 1 . . . . . . Scrap Searched 3 | . . 2 . 1 . . Spaces Dug 18 | . . . . 12 . 6 Terrain Destroyed 71 | . . . 27 20 . 24 Melee 6 | . . . . . . 6 Projectile . | . . . . . . . AOE 65 | . . . 27 20 . 18 Terrain Rammed . | . . . . . . . Walls Destroyed . | . . . . . . . Machines Disabled . | . . . . . . . Actions | -11 -10 -10 -9 -9 -8 -8 --------- Run | Yrd Mat Min Mat Min Mat Gar Total 4847 | 104 841 608 887 634 817 956 Wait 646 | . 265 28 247 5 87 14 Move 3616 | 83 499 545 550 559 583 797 Hop . | . . . . . . . Pick Up 45 | 8 9 9 5 1 13 . Fast Attach 28 | 7 5 . 3 2 6 5 Attach 16 | . . . 3 6 3 4 Detach 7 | . 1 . 1 2 3 . Swap 56 | . 2 . 5 8 14 27 Drop 56 | . 10 . 9 2 19 16 Fire 330 | 6 48 24 61 47 86 58 Melee 23 | . . . . . . 23 Ram . | . . . . . . . Kick . | . . . . . . . Crush 12 | . 2 2 3 2 3 . Escape Stasis 12 | . . . . . . 12 Rewire . | . . . . . . . Trap . | . . . . . . . Miscellaneous . | . . . . . . . Route ------- -11/Scrapyard -10/Materials (discovered 5 exits: *Mat x2 / *Min x2 / Sub) -10/Mines (discovered 4 exits: *Mat x2 / [*Exi] / *Sub) -9/Materials (discovered 5 exits: *Mat x3 / *Min x2) -9/Mines (discovered 2 exits: *Mat x2) -8/Materials (discovered 2 exits: *Fac / Gar) -8/Garrison (discovered 2 exits: [*Mat x2]) History --------- Turn | Location | Event 19 | -11/Scrapyard | Discovered new exit (range 16) 164 | -11/Scrapyard | Entered Materials 335 | -10/Materials | Build established: Mutant 446 | -10/Materials | Discovered new exit (range 6) 706 | -10/Materials | Repaired Lgt. Treads 733 | -10/Materials | Repaired Lgt. Treads 822 | -10/Materials | Discovered new exit (range 15) 1192 | -10/Materials | Discovered new exit (range 15) 1308 | -10/Materials | Learned Storage stockpile data 1358 | -10/Materials | Learned 2 Mines zone layouts 1396 | -10/Materials | Loaded intel: 27 trap records 1436 | -10/Materials | Learned Materials trap positions 1455 | -10/Materials | Identified exit to Mines 1455 | -10/Materials | Identified exit to Materials 1455 | -10/Materials | Identified exit to Subcaves 1481 | -10/Materials | Learned Storage emergency access door positions 1541 | -10/Materials | Entered Mines 1548 | -10/Mines | Received a Rocket Launcher from a helpful Derelict 1616 | -10/Mines | Met a Derelict bent on vengeance 1662 | -10/Mines | Found a hidden stash of uninstalled traps 1820 | -10/Mines | Discovered exit to Subcaves (range 10) 2032 | -10/Mines | Met a Derelict testing a Signal Generator 2329 | -10/Mines | Discovered exit to Materials (range 13) 2412 | -10/Mines | Escorted by a lone wolf Derelict 2432 | -10/Mines | Learned location of Storage (-7) 2477 | -10/Mines | Met a Derelict shopkeep closing up shop 2546 | -10/Mines | Learned Materials non-interactive machine intel 2548 | -10/Mines | Learned Materials emergency access door positions 2644 | -10/Mines | Discovered new exit (range 9) 2754 | -10/Mines | Deemed a non-threat by the Exiles lab entrance 2954 | -10/Mines | Entered Materials 2954 | -9/Materials | Accompanied by 1 ally 2954 | -9/Materials | Evolved 2 slots: Propulsion x1, Utility x1 2955 | -9/Materials | Identified exit to Mines 2956 | -9/Materials | Loaded intel: 15 trap records 2958 | -9/Materials | Loaded intel: 54 non-interactive machine locations 3368 | -9/Materials | Discovered new exit (range 3) 3512 | -9/Materials | Build established: Scavenger-Mutant 3780 | -9/Materials | Discovered new exit (range 14) 3834 | -9/Materials | Identified exit to Materials 3834 | -9/Materials | Learned location of 1 exit from Materials 3896 | -9/Materials | Learned 2 Storage zone layouts 3993 | -9/Materials | Learned Storage trap positions 4065 | -9/Materials | Learned Materials non-interactive machine intel 4114 | -9/Materials | Learned location of Zion (-7) 4270 | -9/Materials | Entered Mines 4425 | -9/Mines | Assembled infested the area 4507 | -9/Mines | Core integrity fell below 50% 4545 | -9/Mines | Lost 6 parts (1p2n2u1w) 4555 | -9/Mines | Learned 2 Materials zone layouts 4677 | -9/Mines | Joined a pair of Derelicts in attacking an 0b10 outpost 4747 | -9/Mines | Build established: Mutant 5352 | -9/Mines | Entered Materials 5352 | -8/Materials | Evolved 2 slots: Utility x2 5353 | -8/Materials | Identified exit to Factory 5355 | -8/Materials | Loaded intel: 35 non-interactive machine locations 6278 | -8/Materials | Build established: Scavenger-Mutant 6406 | -8/Materials | Identified exit to Garrison 6569 | -8/Materials | Garrison activated, responded to threat 7072 | -8/Materials | Entered Garrison 7632 | -8/Garrison | Triggered checkpoint 7633 | -8/Garrison | Garrison Relay disabled 7885 | -8/Garrison | Triggered checkpoint 7964 | -8/Garrison | Triggered checkpoint 8093 | -8/Garrison | Discovered new exit (range 12) 8162 | -8/Garrison | Triggered checkpoint 8373 | -8/Garrison | Triggered checkpoint 8492 | -8/Garrison | Discovered new exit (range 14) 8556 | -8/Garrison | Triggered checkpoint 8686 | -8/Garrison | Triggered checkpoint 8834 | -8/Garrison | Triggered checkpoint 8936 | -8/Garrison | Triggered checkpoint 9051 | -8/Garrison | Installed Relay Interface Framework 9201 | -8/Garrison | Expanded RIF knowledge: Program Shield 9207 | -8/Garrison | Spotted B-75 Beast 9211 | -8/Garrison | Spotted B-75 Beast 9235 | -8/Garrison | Core integrity fell below 50% 9288 | -8/Garrison | Core integrity fell below 20% 9290 | -8/Garrison | Destroyed by B-75 Beast with Heavy Machine Gun Last Messages --------------- 09191_ An alarm sounds. Initiating installation procedure... 09201_ Expanded RIF knowledge: Program Shield. 09210_ B-75 Beast suffers critical hit (Burn). 09217_ Critical hit (Meltdown: +310). 09223_ Lgt. Armor Plating destroyed. 09228_ Lgt. Nuclear Core destroyed. 09228_ Lgt. Treads destroyed. 09231_ Adv. Beam Rifle destroyed. 09231_ Lgt. Treads destroyed. 09239_ Imp. Heat Sink blasted off. 09239_ Acquired 2 matter. 09256_ Lgt. Treads destroyed. 09275_ Critical hit (Meltdown: +320). 09281_ Acquired 3 matter. 09284_ Imp. Heat Sink destroyed. 09285_ Katana destroyed. 09285_ Lgt. Treads destroyed. 09286_ Dropped Huge Storage Unit. 09290_ Lgt. Treads destroyed. Map ----- +----------------------------------------------------+ | +#??# #?????????# #?????##^^##""""## #??#" | | #### ########### ##+#### #??#"[ | | ^ " " +??#" | | ################ #??##" | | +#??????????????########## ## ## #???#" "" | | ???????????????????????### ## ## [=###?#""""" | | ???????????????????????# =%! #?###### | | ???????????????????????# ! #??????? | | ???????????????????????# #??????? | | ???????????????????????# +??????? | | ????# ???????????????### ## ## ###??????? | | ????# ############## ## ## ########+# | | ????# %" * | | ????# % / =%[ | | ????#[[[ !!!#####! ####### % ######## | | ??????????????##" ##????# ## ######??????# | | ?????????######"# "#????# ## #???????????# | | ?????????#"""% %% "###### #######???????????# | | ?????????#" %% " #?????????????????# | | ?????????#""" ^"" "###### #?????????????????# | | ?????????#####""" ##????#[!!#?????????????????# | | ?????????????#### #?????#==[#?????????????????# | | #################++#######!]!#?????????????????# | | BB[%[#?????????????????# | | BB// #?????????????????# | | @= %#?????????????????# | | ##+####### ##### #######+###????????###??????# | | ???????###%*#???# ###????????????????""""?????# | | ???????# *%#???# #???????????????""!!!!????# | | ???????+ +???+ +??????????????"" ???# | | ???????# #???# #??????????????"! ?## | | ???????### #???# ###??????????????"! # | | ?????????# #???# #???????????????#"! # * | | ?????????# #???# #???????????????#"! | | ?????????# !#???# #????????????????"" | | ???#######=%#???# #######??????????"""!!!!!!"# | | ???# #???# #???????????"""""""""### | | ???#!!!### #???# ###!!!#?????????????#######?# | | ???##????# #???# #????##?????????????????????# | | ?????????# %#???# #???????????????????????????### | | ?????????# #???# #?????????????????????????????? | | ?????????# #???# ###???????????????????????????? | | ?????????# #???#% #"#???????????????????????????? | | ???????#" #???#* "#???????????????????????????? | | ???????#" #???# "#???????????????????????????? | | ???????#" #???# = "#???????????????????????????? | | ???????#"# #???#/%#"#???????????????????????????? | | ???????### +???+ =###???????????????????????????? | | ?????????# #???# #?????????????????????????????? | | ?????????####???####?????????????????????????????? | +----------------------------------------------------+ Best States ------------- Heat Dissipation 59 Energy Generation 14 Energy Capacity 280 Matter Stores 300 Matter Capacity 300 Sight Range 16 Terrain Scan Density 10 Armor Coverage 375 Evasion (%) 40 Targeting Accuracy 6 Recoil Reduction 3 Item Schematics ----------------- Lrg. Storage Unit | -9/Materials | Hacked Huge Storage Unit | -9/Materials | Hacked Hcp. Storage Unit | -9/Materials | Hacked Robot Schematics ------------------ None Fabricated ------------ Nothing Repaired ---------- Lgt. Treads | 55% | -10/Materials Lgt. Treads | 49% | -10/Materials Studied --------- None Alien Tech Used ----------------- None Achievements -------------- None Challenges ------------ None Game ------ Seed AlloyMomentumMagmablaster Manual? 0 Play Time 00:35:34 Cumulative 222.1 hours Start 2025.12.15 @ 16:38:29 End 2025.12.15 @ 17:25:34 Sessions 1 Manual Loads 0 Difficulty Rogue Special Mode None Game No. 210 Rogue 210 Adventurer 0 Explorer 0 Win Type - Total 10 Types 7/0/2/0/0/0/0/0/0/1 Lore% 85 Gallery% 75 Achievement% 59 Wizard Run 0 Options --------- Layout 1 ASCII 0 Keyboard 1 Movement Arrows Keybinds 0 Fullscreen 1 Font 24/Smallcaps Map View 50x40 Zoom Use 0% Tactical HUD 1 Map Filters NONE Filters NONE Steam 1 RUN: a4558dd9-aff1-4079-b714-33d00eceb7a8